bitfinex/quotes_ETHUSD_20220212
["timestamp","ask_amount","ask_price","bid_price","bid_amount"]
[1644676608585,0.00948073,2887.2,2886.6,0.498]
[1644676608792,0.10099374,2887.4,2886.6,0.498]
[1644676609092,0.00948133,2887.2,2886.6,0.498]
[1644676609299,0.52038172,2887.2,2886.6,0.498]
[1644676609490,0.00948133,2887.2,2886.6,0.498]
[1644676609891,0.10099374,2887.4,2886.6,0.498]
[1644676610190,0.00948145,2887.2,2886.6,0.498]
[1644676610591,0.00948145,2887.2,2886.5,0.00835013]
[1644676610892,0.5473362,2886.7,2886.5,0.00835013]
[1644676611091,0.1731,2887.1,2885.8,0.92351334]
[1644676611290,4.36407085,2887.3,2885.8,0.75041334]
[1644676611490,0.00948133,2887.2,2886.5,0.00835013]
[1644676612090,0.64069103,2886.7,2885.8,0.75041334]
[1644676612330,0.64069103,2886.7,2885.9,0.1731]
[1644676613330,3.34465784,2886.6,2885.9,0.1731]
[1644676613531,0.64069103,2886.7,2885.9,0.1731]
[1644676614132,0.55410454,2886.7,2885.9,0.1731]
[1644676614333,3.43618314,2886.6,2885.9,0.1731]
[1644676614539,0.55410454,2886.7,2885.8,0.50041334]
[1644676614938,0.56108734,2886.7,2885.8,0.40918334]
[1644676615134,0.54438049,2886.2,2885.8,0.40918334]
[1644676615538,0.54438049,2886.2,2885.4,0.498]
[1644676615839,0.54438049,2886.2,2885.1,10.4559]
[1644676615840,3.54210572,2886.1,2885.1,3.0979]
[1644676616101,3.54210572,2886.1,2885.0,0.03720623]
[1644676616304,3.54210572,2886.1,2885.7,0.00833156]
[1644676617110,3.54210572,2886.1,2885.0,0.03720623]
[1644676617307,0.1731,2886.0,2885.0,0.03720623]
[1644676617506,0.1731,2886.0,2885.8,0.00833127]
[1644676618308,0.1731,2886.0,2885.0,0.03720623]
[1644676618508,0.51371753,2885.6,2885.0,0.03720623]
[1644676618707,0.51371753,2885.6,2885.3,0.03333009]
[1644676619511,0.51371753,2885.6,2885.0,0.03720623]
[1644676619715,0.51371753,2885.6,2885.3,0.00833257]
[1644676619935,3.37953324,2885.9,2885.3,0.00833257]
[1644676620132,3.8325,2886.0,2885.3,0.00833257]
[1644676620332,3.45057343,2885.9,2885.3,0.00833257]
[1644676620733,3.45057343,2885.9,2885.0,0.03720623]
[1644676620936,0.52469738,2885.5,2885.0,0.07053978]
[1644676621136,0.52469738,2885.5,2885.0,0.03333355]
[1644676621734,3.44812252,2885.4,2885.0,0.03333355]
[1644676621934,3.44812252,2885.4,2884.4,0.25]
[1644676622133,0.52469738,2885.5,2885.1,0.00833315]
[1644676622339,3.35892797,2885.4,2885.1,0.00833315]
[1644676623038,3.3659015,2885.4,2885.1,0.00833315]
[1644676623238,0.52469738,2885.5,2884.6,0.04092649]
[1644676623434,0.52469738,2885.5,2885.1,0.00833315]
[1644676624283,0.52469738,2885.5,2884.5,0.04149492]
[1644676624583,0.52469738,2885.5,2885.2,0.008333]
[1644676625185,0.1733,2885.8,2885.2,0.008333]
[1644676625585,0.1733,2885.8,2884.5,0.04149492]
[1644676625786,0.1733,2885.8,2885.4,0.00833243]
[1644676626287,0.68656459,2885.5,2885.4,0.00833243]
[1644676626686,0.68656459,2885.5,2884.5,0.04149492]
[1644676628132,0.68656459,2885.5,2884.9,0.00825411]
[1644676629131,0.68170196,2885.0,2884.5,0.04149492]
[1644676629336,0.1733,2885.4,2885.1,0.00825354]
[1644676629537,0.1733,2885.7,2885.1,0.00825354]
[1644676629739,0.1731,2885.8,2885.1,0.00825354]
[1644676629939,4.75020853,2885.9,2885.1,0.00825354]
[1644676630340,4.75020853,2885.9,2884.5,0.04149492]
[1644676630341,0.54316853,2885.3,2884.5,0.04149492]
[1644676630540,3.71,2885.8,2884.5,0.04379615]
[1644676630739,3.41758286,2885.7,2884.5,0.04379615]
[1644676631984,0.1733,2885.6,2884.5,0.04379615]
[1644676632182,0.6936373,2885.5,2884.5,0.04379615]
[1644676632984,0.6936373,2885.5,2884.9,0.00247358]
[1644676633586,3.3980274,2885.4,2884.9,0.00247358]
[1644676633987,0.6936373,2885.5,2884.5,0.04379615]
[1644676634188,3.34565426,2885.4,2884.5,0.04379615]
[1644676634387,3.34565426,2885.4,2885.0,0.00824485]
[1644676634587,0.1731,2885.4,2885.0,0.00824485]
[1644676634840,3.53723043,2885.4,2885.0,0.00824485]
[1644676635039,3.53723043,2885.4,2884.6,0.03298435]
[1644676635040,0.0164897,2884.9,2884.6,0.03298435]
[1644676635236,0.0164897,2884.9,2884.5,0.04149492]
[1644676635446,0.0164897,2884.9,2884.7,0.04035807]
[1644676635447,0.1733,2884.8,2884.7,0.04035807]
[1644676635637,0.1733,2884.8,2884.0,0.00230123]
[1644676635638,3.25,2884.7,2884.0,0.00230123]
[1644676635835,4.54062,2884.6,2884.0,0.00230123]
[1644676636140,0.498,2884.8,2884.0,0.00230123]
[1644676636141,8.02901501,2884.8,2884.0,0.00230123]
[1644676636535,4.36151501,2884.8,2884.0,0.00230123]
[1644676636935,4.36151501,2884.8,2883.6,0.498]
[1644676637835,4.36151501,2884.8,2884.1,0.00247146]
[1644676638434,3.5,2884.7,2884.1,0.00247146]
[1644676638681,4.36151501,2884.8,2883.6,0.498]
[1644676638682,4.53481501,2884.8,2883.6,0.498]
[1644676638882,4.36151501,2884.8,2883.6,0.498]
[1644676639084,4.36151501,2884.8,2883.6,0.798]
[1644676639282,4.36151501,2884.8,2883.6,1.098]
[1644676639486,0.66621501,2884.8,2883.6,1.098]
[1644676639790,0.0164897,2884.9,2883.6,1.098]
[1644676640789,0.0164897,2884.9,2883.6,0.498]
[1644676640988,0.56898443,2884.6,2883.6,0.498]
[1644676642633,0.56898443,2884.6,2884.0,0.00820908]
[1644676642831,3.3724261,2884.5,2884.0,0.00820908]
[1644676643031,0.56898443,2884.6,2884.0,0.00820908]
[1644676643631,0.56898443,2884.6,2883.8,0.498]
[1644676643835,0.56898443,2884.6,2884.2,0.00820851]
[1644676644839,0.0164897,2884.9,2883.8,0.498]
[1644676645039,0.0164897,2884.9,2884.3,0.00820822]
[1644676645844,0.0164897,2884.9,2883.8,0.53083782]
[1644676646093,0.57325094,2884.6,2884.5,0.00820766]
[1644676646793,0.1733,2884.8,2884.5,0.00820766]
[1644676646993,0.0164897,2884.9,2884.5,0.00820766]
[1644676647194,0.0164897,2884.9,2883.8,0.498]
[1644676647394,0.0164897,2884.9,2884.5,0.00820751]
[1644676647895,0.61333068,2884.8,2884.5,0.00820751]
[1644676648095,0.1733,2884.7,2884.5,0.00820751]
[1644676648293,0.1733,2884.7,2883.8,0.498]
[1644676648501,0.61333068,2884.8,2883.7,0.1733]
[1644676648795,0.1733,2884.7,2884.5,0.00820751]
[1644676648994,0.78663068,2884.8,2884.5,0.00820751]
[1644676649596,0.78663068,2884.8,2883.6,0.25]
[1644676649833,0.61333068,2884.8,2884.5,0.00820751]
[1644676650435,3.37728117,2884.7,2884.5,0.00820751]
[1644676650834,0.61333068,2884.8,2883.5,3.4856]
[1644676651040,3.51948321,2884.7,2884.5,0.00820766]
[1644676651237,0.67564348,2884.6,2884.5,0.00820766]
[1644676651436,4.81304017,2884.6,2884.5,0.00820766]
[1644676652036,4.81304017,2884.6,2883.1,0.53520623]
[1644676652234,4.81304017,2884.6,2883.1,0.03720623]
[1644676652235,0.62761643,2883.6,2883.1,0.03720623]
[1644676652435,3.323,2884.4,2883.1,0.03720623]
[1644676652736,3.53719512,2884.3,2883.1,0.03720623]
[1644676652935,3.71049512,2884.3,2883.1,0.03720623]
[1644676653590,3.71049512,2884.3,2882.8,0.00229696]
[1644676654284,0.53149303,2883.4,2882.8,0.00229696]
[1644676654686,0.53149303,2883.4,2883.0,0.0327848]
[1644676654890,0.48149303,2883.4,2883.0,0.0327848]
[1644676655288,3.36850542,2883.3,2883.0,0.0327848]
[1644676655491,3.36850542,2883.3,2882.8,0.00229696]
[1644676655492,0.48149303,2883.4,2882.8,0.00229696]
[1644676655795,0.80599303,2883.4,2883.0,0.00819611]
[1644676655997,0.80599303,2883.4,2882.0,0.03720623]
[1644676655998,0.6741049,2881.1,2879.8,154.69367]
[1644676656208,0.6741049,2881.1,2879.3,10.39897482]
[1644676656209,4.16925075,2881.0,2879.3,10.39897482]
[1644676656399,4.16925075,2881.0,2879.3,8.94197482]
[1644676656400,0.34786057,2880.3,2879.3,8.94197482]
[1644676656595,0.34786057,2879.8,2878.5,0.86821]
[1644676656794,0.5454,2880.2,2878.2,0.955]
[1644676656795,3.8619306,2879.4,2878.2,0.955]
[1644676656989,3.8619306,2879.4,2878.2,1.93726]
[1644676656990,2.54674,2879.3,2878.2,1.93726]
[1644676657197,6.227,2878.3,2878.2,0.77150061]
[1644676657442,0.1736,2878.2,2877.2,11.1341]
[1644676657657,6.227,2877.7,2877.2,11.1341]
[1644676657841,10.43679117,2877.3,2877.1,1.21614981]
[1644676658142,2.75,2877.1,2875.8,4.65213943]
[1644676658346,0.01208655,2876.6,2876.1,0.00229426]
[1644676658549,0.01208655,2876.6,2875.5,4.65213943]
[1644676658746,3.8619306,2875.9,2875.5,4.65213943]
[1644676658940,5.0830306,2875.9,2875.8,4.65213943]
[1644676659139,5.0830306,2875.9,2875.1,0.38685101]
[1644676659140,0.7231,2875.9,2875.1,0.38685101]
[1644676659340,0.7231,2875.9,2874.6,0.25]
[1644676659341,0.7231,2875.9,2875.8,0.79020883]
[1644676659545,0.7231,2875.9,2875.6,0.00772032]
[1644676659741,0.7231,2875.9,2875.8,0.17209129]
[1644676659947,0.7231,2875.9,2875.6,0.00772032]
[1644676660147,0.7231,2875.9,2874.6,0.25]
[1644676660352,0.498,2875.9,2875.6,0.67807126]
[1644676661099,0.1738,2876.7,2875.8,0.67807126]
[1644676661305,0.27639994,2876.9,2876.6,0.67807126]
[1644676661496,0.27639994,2876.9,2875.9,12.6556]
[1644676661497,0.13819997,2876.9,2875.9,0.70697923]
[1644676661702,0.6718,2876.8,2876.0,13.7531]
[1644676661897,0.13819997,2876.9,2876.0,13.7531]
[1644676662696,0.417,2877.4,2876.3,0.67807126]
[1644676662899,0.1738,2877.8,2877.3,0.67807126]
[1644676663097,3.6738,2878.0,2877.0,0.60893649]
[1644676663295,3.6738,2878.0,2876.1,1.18416641]
[1644676663296,0.1738,2878.0,2876.4,0.17209129]
[1644676663497,0.1736,2878.3,2876.2,4.8362]
[1644676663699,0.1736,2878.3,2876.1,0.25]
[1644676663700,0.1736,2877.9,2876.1,0.25]
[1644676663904,0.0125954,2877.7,2876.0,13.7531]
[1644676664097,3.5125954,2877.7,2875.4,0.25]
[1644676664400,3.5125954,2877.7,2875.0,0.00732026]
[1644676664401,0.25,2876.4,2875.0,0.00732026]
[1644676664597,0.5908,2876.3,2875.0,0.00732026]
[1644676664839,1.4607,2876.3,2875.0,0.68539152]
[1644676665047,1.4607,2876.3,2875.8,0.67807126]
[1644676665048,0.417,2876.3,2875.8,0.67807126]
[1644676665244,0.417,2876.3,2873.9,13.7628]
[1644676665445,0.0128485,2875.6,2874.3,0.25]
[1644676665643,0.0128485,2875.6,2875.0,0.00732026]
[1644676665644,0.5909,2875.5,2875.0,0.00732026]
[1644676665841,1.28714,2875.5,2875.0,0.00732026]
[1644676666043,0.87014,2875.4,2875.0,0.00732026]
[1644676666245,0.417,2875.3,2875.0,0.00732026]
[1644676666450,0.417,2875.3,2873.7,0.25]
[1644676666842,0.42646836,2875.3,2875.0,0.00732026]
[1644676667344,0.1739,2875.2,2875.0,2.026e-05]
[1644676667549,0.417,2875.1,2875.0,2.026e-05]
[1644676667749,0.417,2875.1,2872.3,0.67807126]
[1644676667750,0.3008,2874.7,2872.3,0.67807126]
[1644676667944,0.3008,2874.7,2872.0,4.9967]
[1644676667945,0.01242667,2873.9,2872.4,0.67807126]
[1644676668247,0.417,2873.8,2873.2,0.71662379]
[1644676668442,0.1739,2874.5,2873.2,0.71662379]
[1644676668691,0.38819997,2874.6,2873.2,0.56662379]
[1644676668692,0.31209997,2874.6,2873.2,0.56662379]
[1644676668886,0.13819997,2874.6,2874.1,0.67807126]
[1644676669089,0.1739,2874.5,2874.1,0.67807126]
[1644676669284,0.13819997,2874.6,2873.7,0.00730519]
[1644676669490,0.1739,2874.5,2874.0,0.62807126]
[1644676669686,0.1739,2874.5,2873.3,0.02922513]
[1644676669687,3.3,2874.4,2873.3,0.02922513]
[1644676669903,0.417,2874.3,2873.3,0.02922513]
[1644676670096,0.1739,2874.2,2873.1,0.62807126]
[1644676670297,0.1739,2874.2,2873.1,1.14064947]
[1644676670495,1.00862997,2874.6,2873.2,3.3]
[1644676670496,0.05519997,2874.6,2873.2,3.3]
[1644676670697,0.5909,2874.5,2873.2,3.3]
[1644676670901,0.417,2874.5,2873.7,0.60998335]
[1644676671099,0.0008,2874.7,2873.7,0.60998335]
[1644676671100,0.0008,2874.7,2874.4,0.62807126]
[1644676671297,0.0008,2874.7,2873.7,0.60998335]
[1644676671496,0.0008,2874.7,2874.0,0.62807126]
[1644676671701,0.0008,2874.7,2874.5,0.01851844]
[1644676671896,0.1739,2875.3,2874.5,0.01851844]
[1644676671897,0.1247,2875.3,2874.5,0.01851844]
[1644676672100,0.1247,2875.3,2874.5,0.02075261]
[1644676672537,0.1247,2875.3,2874.5,0.01851844]
[1644676672941,0.05519997,2875.5,2875.1,0.62807126]
[1644676673139,0.13819997,2875.7,2875.1,0.62807126]
[1644676673541,0.13819997,2875.7,2874.5,0.01851844]
[1644676673742,0.13819997,2875.7,2874.6,0.70192708]
[1644676673940,0.00946821,2875.5,2874.7,0.00223417]
[1644676674539,0.00946821,2875.5,2874.9,0.62807126]
[1644676674944,0.13819997,2875.7,2874.9,0.62807126]
[1644676675144,0.00946836,2875.3,2874.9,0.00223417]
[1644676675345,0.00946836,2875.3,2875.1,0.62807126]
[1644676675546,6.836e-05,2875.3,2875.1,0.62807126]
[1644676675748,6.836e-05,2875.3,2875.1,0.92807126]
[1644676675944,6.836e-05,2875.3,2875.2,2.22416751]
[1644676676190,0.01260188,2877.2,2875.1,0.92807126]
[1644676676390,0.5909,2877.3,2876.0,0.62807126]
[1644676676592,0.5909,2877.3,2875.9,0.62807126]
[1644676676786,0.5909,2877.3,2876.0,0.55110361]
[1644676676787,3.71249082,2877.2,2876.0,0.55110361]
[1644676676996,0.1738,2877.1,2876.0,0.55110361]
[1644676677586,0.417,2877.3,2876.4,0.62807126]
[1644676677587,3.65248782,2877.2,2876.4,0.62807126]
[1644676677785,3.65248782,2877.2,2876.5,12.02516842]
[1644676677786,3.69835509,2877.2,2876.5,12.02516842]
[1644676677990,0.1738,2877.2,2876.5,12.02516842]
[1644676678193,0.18674755,2877.7,2877.1,0.62807126]
[1644676678388,0.417,2878.0,2876.5,12.62516842]
[1644676678389,0.1736,2878.0,2876.5,12.62516842]
[1644676678588,0.417,2878.3,2876.9,0.62807126]
[1644676678589,3.6736,2878.1,2876.9,0.62807126]
[1644676678788,0.00946669,2877.5,2876.5,12.02516842]
[1644676678988,0.00946669,2877.5,2876.7,1.26997993]
[1644676679188,0.00946669,2877.5,2876.9,0.62807126]
[1644676679835,0.01298901,2877.7,2876.9,0.62807126]
[1644676680045,1.17447997,2878.3,2877.6,0.62807126]
[1644676680046,0.03786168,2877.8,2877.6,0.62807126]
[1644676680440,0.03786168,2877.8,2876.7,0.667]
[1644676680642,0.12606165,2878.5,2877.5,3.92807126]
[1644676681042,0.1736,2878.4,2878.0,0.62807126]
[1644676681242,0.78012206,2877.9,2877.5,3.3]
[1644676681442,0.78012206,2877.9,2877.7,0.6879472]
[1644676682041,1.63127206,2877.9,2877.7,0.6879472]
[1644676683686,1.64075598,2877.9,2877.7,0.69537276]
[1644676683891,1.64075598,2877.9,2876.7,1.667]
[1644676683892,2.75,2877.8,2876.7,0.25]
[1644676684089,2.75,2877.8,2875.7,0.083]
[1644676684090,4.91257,2877.8,2876.3,3.5]
[1644676684285,4.91257,2877.8,2875.8,0.25]
[1644676684286,1.91257,2877.8,2876.0,0.01213832]
[1644676684486,0.1736,2877.8,2876.0,0.42913832]
[1644676684687,0.1236,2877.8,2876.1,3.5]
[1644676685391,0.1236,2877.8,2876.0,0.01213832]
[1644676685892,0.1236,2877.8,2876.0,0.42913832]
[1644676686090,0.1236,2877.8,2876.1,3.5]
[1644676686290,1.63127206,2877.9,2876.5,12.27516842]
[1644676686690,1.63127206,2877.9,2876.6,3.83176129]
[1644676686994,1.63127206,2877.9,2876.6,6.27826129]
[1644676687190,1.63127206,2877.9,2876.7,0.61298888]
[1644676687437,1.63127206,2877.9,2877.8,0.64087674]
[1644676688435,2.206e-05,2877.9,2877.8,0.64087674]
[1644676688634,2.206e-05,2877.9,2877.7,0.3011]
[1644676688833,2.206e-05,2877.9,2877.7,4.05465637]
[1644676689033,2.206e-05,2877.9,2877.7,5.05465637]
[1644676689233,2.206e-05,2877.9,2877.7,1.3011]
[1644676689435,2.206e-05,2877.9,2877.8,0.3]
[1644676689732,2.206e-05,2877.9,2877.7,0.3011]
[1644676689733,0.00729705,2877.9,2877.7,0.3011]
[1644676689946,9.705e-05,2877.9,2877.6,1.2328]
[1644676690135,9.705e-05,2877.9,2877.6,1.1828]
[1644676690636,0.1736,2878.9,2877.6,1.1828]
[1644676690836,0.1736,2878.9,2877.8,0.56234823]
[1644676691092,0.1736,2878.9,2877.9,3.94633333]
[1644676691283,0.1736,2878.9,2877.9,4.24633333]
[1644676691484,0.1736,2878.9,2878.0,0.1737]
[1644676691683,7.46,2879.0,2878.0,0.17593189]
[1644676691883,7.46,2879.0,2878.1,0.00223189]
[1644676692083,7.46,2879.0,2878.8,0.66050022]
[1644676692686,0.1736,2879.5,2878.8,0.66050022]
[1644676692885,1.20703907,2878.5,2878.2,0.083]
[1644676693189,1.20703907,2878.5,2878.3,13.74246695]
[1644676693385,1.20703907,2878.5,2878.3,0.69536695]
[1644676694586,1.21653838,2878.5,2878.3,0.69536695]
[1644676695440,1.20703907,2878.5,2878.3,0.69536695]
[1644676695639,1.21653838,2878.5,2878.3,0.69536695]
[1644676696041,1.21653838,2878.5,2878.2,0.62905923]
[1644676696239,1.21653838,2878.5,2877.7,0.00223189]
[1644676696440,1.21653838,2878.5,2878.1,0.79752208]
[1644676696641,0.1736,2878.4,2878.1,0.79752208]
[1644676697243,1.20703907,2878.5,2878.1,0.79752208]
[1644676697439,1.20703907,2878.5,2878.1,1.40958136]
[1644676697841,0.1736,2878.4,2878.1,1.40958136]
[1644676698040,0.18310774,2878.4,2878.1,1.40958136]
[1644676699089,1.20703907,2878.5,2878.1,1.40958136]
[1644676699286,0.00950778,2878.4,2878.1,1.40958136]
[1644676699688,3.59397188,2878.4,2878.1,0.79752208]
[1644676699896,3.52201251,2878.4,2878.1,0.06649465]
[1644676700096,3.52201251,2878.4,2877.6,0.00743154]
[1644676700097,0.86942,2877.9,2877.6,0.00743154]
[1644676700296,0.86942,2877.9,2876.5,4.8813]
[1644676700491,5.56992039,2877.8,2877.6,0.00743154]
[1644676700691,1.47932039,2877.7,2877.6,0.00743154]
[1644676700890,1.65292039,2877.7,2877.6,0.00743154]
[1644676701090,1.65292039,2877.7,2877.6,3.154e-05]
[1644676701091,10.13090039,2877.7,2877.6,3.154e-05]
[1644676701293,3.3,2877.6,2875.8,5.1822]
[1644676701498,0.86981,2876.7,2875.8,5.1822]
[1644676701692,1.65312039,2876.6,2875.8,5.1822]
[1644676701895,0.1738,2876.6,2875.8,5.1822]
[1644676702333,1.47973754,2876.5,2876.2,0.67439737]
[1644676702535,1.47973754,2876.5,2875.8,5.1822]
[1644676702736,1.47973754,2876.4,2875.8,5.1822]
[1644676703043,1.47973754,2876.3,2876.2,0.00652234]
[1644676703238,1.89673754,2876.3,2876.2,0.00652234]
[1644676703438,1.89673754,2876.3,2876.2,2.234e-05]
[1644676703635,2.76663754,2876.3,2876.2,2.234e-05]
[1644676703834,2.76663754,2876.3,2875.1,12.7194]
[1644676704035,0.86989,2876.1,2875.1,12.7194]
[1644676704335,2.07053754,2876.0,2875.3,0.52368221]
[1644676704535,1.47973754,2875.9,2875.3,0.52368221]
[1644676704734,2.34969754,2875.9,2875.1,12.7194]
[1644676704942,2.52354754,2875.8,2875.1,12.7194]
[1644676705139,1.47973754,2875.7,2875.1,12.7194]
[1644676705338,0.417,2875.6,2875.1,12.7194]
[1644676705739,2.52406565,2875.5,2875.1,12.6694]
[1644676705948,1.48018565,2875.4,2875.0,0.007]
[1644676706190,0.87026,2875.2,2874.1,0.207]
[1644676706388,0.87026,2875.2,2873.4,0.25]
[1644676706389,0.417,2875.2,2873.4,0.25]
[1644676706591,0.417,2875.2,2875.1,0.00220147]
[1644676706887,5.75103516,2875.2,2875.1,0.00220147]
[1644676707091,5.75103516,2875.2,2875.1,1.47e-06]
[1644676707487,5.75103516,2875.2,2873.6,0.25]
[1644676707689,1.6542675,2875.1,2873.2,0.01213832]
[1644676707887,0.392248,2875.2,2873.2,0.01213832]
[1644676707888,0.392248,2875.2,2873.9,0.63387879]
[1644676708094,1.48044755,2875.1,2873.9,0.63387879]
[1644676708289,1.65434755,2875.1,2873.9,0.63387879]
[1644676708489,0.1739,2875.1,2873.9,0.63387879]
[1644676708692,0.1739,2875.3,2873.9,0.63387879]
[1644676708888,1.48041436,2875.2,2873.9,0.63387879]
[1644676709937,21.05025,2875.0,2873.0,4.69810771]
[1644676710147,21.05025,2875.0,2871.3,3.99330248]
[1644676710148,5.0,2873.2,2871.4,5.4705]
[1644676710343,0.01206893,2872.4,2871.6,7.0]
[1644676710542,0.87111,2872.2,2871.6,0.00223181]
[1644676710747,0.417,2872.1,2871.6,0.00223181]
[1644676710942,0.417,2872.1,2871.7,0.70791764]
[1644676711146,5.0426,2872.0,2870.9,0.16175429]
[1644676711351,5.0426,2872.0,2868.2,17.63498]
[1644676711352,3.3,2871.8,2869.8,0.10971789]
[1644676711552,3.3,2871.8,2867.5,4.7904]
[1644676711553,0.72,2868.7,2867.5,4.7904]
[1644676711742,1.15026,2870.8,2867.9,3.5]
[1644676711743,0.9647,2869.5,2867.9,3.5]
[1644676711951,0.417,2869.6,2868.7,0.1]
[1644676712141,0.417,2869.9,2869.5,0.47121789]
[1644676712339,0.417,2869.9,2868.7,0.1]
[1644676712571,1.8435,2869.9,2869.6,0.0437686]
[1644676712743,0.5911,2869.9,2869.0,0.00198369]
[1644676712941,0.5911,2869.9,2869.1,0.04661072]
[1644676713352,0.5911,2869.9,2869.5,0.61694238]
[1644676713601,0.5911,2869.9,2869.1,0.04661072]
[1644676713799,0.5911,2869.9,2869.6,0.0437686]
[1644676713800,0.417,2869.9,2869.6,0.0437686]
[1644676713996,0.417,2869.9,2868.9,0.04774757]
[1644676714399,0.19339994,2870.3,2869.0,0.51481451]
[1644676714597,0.19339994,2870.3,2870.0,0.62818515]
[1644676714799,0.19339994,2870.3,2869.1,0.00223246]
[1644676714800,0.19339994,2870.3,2869.1,0.04661072]
[1644676715005,0.5901,2870.2,2870.1,0.04092648]
[1644676715204,4.43499994,2870.3,2869.1,1.8]
[1644676715404,0.1147758,2869.8,2869.1,1.84661072]
[1644676715602,0.1147758,2869.8,2869.2,0.04827476]
[1644676715804,5.3482,2871.1,2869.2,0.04827476]
[1644676715805,0.417,2870.8,2870.6,0.55108251]
[1644676716010,0.417,2870.8,2869.3,1.76379519]
[1644676716202,5.23027,2871.5,2869.3,1.76379519]
[1644676716203,4.82881387,2871.5,2869.6,0.25]
[1644676716401,4.82881387,2871.5,2869.4,3.3]
[1644676716402,0.1742,2871.0,2869.4,8.07873828]
[1644676716601,0.417,2871.4,2869.7,0.04320018]
[1644676716602,0.417,2870.9,2869.7,0.04320018]
[1644676716801,4.82881387,2871.5,2869.4,8.03383283]
[1644676716802,0.417,2870.8,2869.5,0.04433703]
[1644676717003,0.417,2870.8,2869.7,0.64888049]
[1644676717004,3.5,2870.7,2869.7,0.64888049]
[1644676717203,1.74312,2871.2,2869.8,0.00223283]
[1644676717447,1.74312,2871.2,2869.8,0.04486459]
[1644676717448,3.49011783,2871.1,2869.8,0.04486459]
[1644676717646,0.417,2871.1,2869.9,0.04206333]
[1644676717847,0.417,2871.1,2869.9,0.00176333]
[1644676718046,3.5,2871.0,2870.2,0.54706067]
[1644676718245,0.417,2870.9,2870.2,0.54706067]
[1644676718448,0.417,2870.9,2870.2,0.5492935]
[1644676718754,0.417,2871.3,2870.2,0.5492935]
[1644676719046,0.417,2871.3,2870.3,0.00223283]
[1644676719047,0.1741,2871.2,2870.3,0.00223283]
[1644676719446,0.1741,2871.2,2869.9,0.00176333]
[1644676719849,0.00745313,2870.9,2869.9,0.00176333]
[1644676720056,0.00745313,2870.9,2870.0,5.0]
[1644676720252,0.00745313,2870.9,2870.1,0.001]
[1644676720451,0.00745313,2870.9,2870.0,0.00223283]
[1644676720653,0.22119997,2871.6,2870.0,5.3]
[1644676720853,0.02452381,2870.7,2870.1,0.00499616]
[1644676721086,0.00952766,2870.6,2870.2,0.60553827]
[1644676721397,0.00952766,2870.6,2869.8,5.717]
[1644676721398,0.00952766,2870.6,2867.3,2.6144]
[1644676721399,5.01231641,2870.3,2867.3,2.6144]
[1644676721590,3.3,2870.4,2866.7,0.02319408]
[1644676721591,0.01201471,2868.9,2866.7,0.02319408]
[1644676721787,0.01201471,2868.9,2867.2,0.00223234]
[1644676721788,0.01238454,2867.6,2867.2,0.00223234]
[1644676721992,0.01238454,2867.6,2866.7,0.02319408]
[1644676721993,1.5235,2866.8,2866.7,0.02319408]
[1644676722188,1.5235,2866.8,2865.9,0.1743]
[1644676722189,2.7262,2866.8,2866.2,1.30539511]
[1644676722391,2.7262,2866.8,2865.0,0.252]
[1644676722392,3.3,2866.7,2865.0,0.252]
[1644676722588,5.213,2866.1,2862.5,0.1744]
[1644676722787,3.917,2866.0,2865.7,0.00214728]
[1644676722984,14.05974,2865.9,2862.6,13.12401491]
[1644676723187,1.74687,2865.1,2862.9,0.2]
[1644676723387,0.417,2865.0,2864.3,0.47733842]
[1644676723588,0.417,2865.0,2862.7,0.04092649]
[1644676723589,5.22539191,2864.9,2863.4,0.122538]
[1644676723788,0.33624591,2864.4,2863.4,0.072538]
[1644676723992,0.33624591,2864.4,2863.5,0.00214524]
[1644676723993,0.417,2864.3,2863.5,0.00214524]
[1644676724185,0.417,2864.3,2863.4,0.122538]
[1644676724385,1.3568,2864.5,2863.5,0.00214524]
[1644676724586,3.3,2864.1,2862.7,0.04092649]
[1644676724841,0.3155,2864.6,2862.7,0.00217213]
[1644676725052,0.3155,2864.6,2860.3,20.09382]
[1644676725053,0.01223357,2863.7,2861.9,2.5]
[1644676725250,0.42944975,2863.6,2862.5,0.00214579]
[1644676725447,0.19339994,2863.9,2862.0,0.00214579]
[1644676725448,0.417,2863.5,2862.0,0.00214579]
[1644676725647,0.1746,2863.4,2863.3,2.6]
[1644676725849,3.5,2864.5,2863.3,2.6]
[1644676725850,2.62119,2865.4,2863.5,3.3]
[1644676726053,0.32571337,2865.6,2863.6,3.5]
[1644676726256,0.32571337,2865.6,2863.6,3.50214579]
[1644676726450,0.417,2865.5,2863.7,0.00314579]
[1644676726653,0.32571337,2866.1,2863.7,0.00314579]
[1644676726654,5.3874,2866.0,2863.7,0.00214579]
[1644676726850,5.3874,2866.0,2864.6,5.0]
[1644676726851,0.1744,2866.0,2864.6,5.0]
[1644676727050,3.5,2866.5,2863.4,0.25]
[1644676727051,0.1744,2866.5,2865.0,3.3]
[1644676727253,0.1744,2866.5,2865.1,0.001]
[1644676727450,0.1744,2866.7,2865.1,0.00314579]
[1644676727647,0.1744,2866.7,2865.6,0.53071222]
[1644676727847,0.417,2867.1,2865.6,0.53071222]
[1644676727848,0.87304,2866.9,2865.7,0.00214579]
[1644676728050,0.0123996,2866.6,2865.7,0.00214579]
[1644676728250,0.1744,2866.5,2866.0,0.0067986]
[1644676728589,0.083,2866.9,2866.0,0.0067986]
[1644676728590,3.59587418,2866.9,2866.0,0.0067986]
[1644676728786,0.2574,2866.9,2866.0,0.0067986]
[1644676729092,0.2574,2866.9,2866.0,0.66702034]
[1644676729093,0.1744,2866.9,2866.0,0.66702034]
[1644676729291,0.01271772,2867.2,2865.5,0.13819997]
[1644676729490,0.1744,2866.8,2866.3,0.00679789]
[1644676729690,0.01219609,2866.6,2866.3,0.00679789]
[1644676730189,0.1744,2866.9,2866.5,0.50334735]
[1644676730397,0.1744,2867.2,2865.8,0.00214579]
[1644676730589,3.583,2867.5,2865.9,0.02719564]
[1644676730590,1.44660559,2866.2,2865.9,0.02719564]
[1644676731188,0.26193539,2866.0,2865.9,0.02719564]
[1644676731392,0.28585472,2866.0,2865.9,0.02719564]
[1644676731590,0.28585472,2866.0,2865.8,0.51665593]
[1644676731800,0.28585472,2866.0,2865.8,0.52345501]
[1644676731992,0.28585472,2866.0,2865.9,0.5242]
[1644676732193,0.28585472,2866.0,2865.9,0.3508]